bitfinex-derivatives/quotes_BTCF0:USTF0_20241217
["timestamp","ask_amount","ask_price","bid_price","bid_amount"]
[1734400596175,0.31520137,106390.0,106370.0,0.463393]
[1734400596378,0.36528741,106390.0,106370.0,0.463393]
[1734400596573,0.36528741,106390.0,106370.0,0.407793]
[1734400596574,0.10958604,106380.0,106370.0,0.407793]
[1734400597185,0.10958604,106380.0,106370.0,0.047493]
[1734400597376,0.1940125,106380.0,106370.0,0.047493]
[1734400597576,0.1940125,106380.0,106370.0,0.408293]
[1734400598089,0.1940125,106380.0,106370.0,0.407793]
[1734400598277,0.046994,106370.0,106360.0,0.466397]
[1734400598582,0.09708004,106370.0,106360.0,0.466397]
[1734400599679,0.13142046,106370.0,106360.0,0.466397]
[1734400599882,0.09708004,106370.0,106360.0,0.105597]
[1734400600110,0.1815065,106370.0,106360.0,0.466397]
[1734400600585,0.1815065,106370.0,106360.0,0.4194]
[1734400600988,0.1815065,106370.0,106350.0,0.51488704]
[1734400601189,0.2394065,106370.0,106350.0,0.51488704]
[1734400601694,0.2394065,106370.0,106350.0,0.52435553]
[1734400602188,0.2394065,106370.0,106360.0,0.0005]
[1734400603085,0.2394065,106370.0,106350.0,0.52435553]
[1734400603308,0.09708404,106360.0,106350.0,0.464801]
[1734400603591,0.046998,106360.0,106350.0,0.464801]
[1734400604192,0.09708404,106360.0,106350.0,0.464801]
[1734400606291,0.15458404,106360.0,106350.0,0.464801]
[1734400606890,0.15458404,106360.0,106350.0,0.104001]
[1734400607188,0.15458404,106360.0,106350.0,0.464801]
[1734400607891,0.15458404,106360.0,106350.0,0.104001]
[1734400608097,0.15458404,106360.0,106350.0,0.464801]
[1734400608399,0.15458404,106360.0,106350.0,0.407801]
[1734400608599,0.15458404,106360.0,106350.0,0.047001]
[1734400609196,0.15458404,106360.0,106350.0,0.407801]
[1734400609397,0.15458404,106360.0,106350.0,0.047001]
[1734400609900,0.15458404,106360.0,106350.0,0.407801]
[1734400610195,0.15458404,106360.0,106350.0,0.408301]
[1734400612292,0.16421294,106360.0,106350.0,0.047501]
[1734400612691,0.16421294,106360.0,106350.0,0.408301]
[1734400615801,0.16421294,106360.0,106350.0,0.047501]
[1734400616193,0.16421294,106360.0,106350.0,0.408301]
[1734400619102,0.1141269,106360.0,106350.0,0.408301]
[1734400619390,0.16421294,106360.0,106350.0,0.408301]
[1734400620807,0.1141269,106360.0,106350.0,0.408301]
[1734400621001,0.16421294,106360.0,106350.0,0.408301]
[1734400621601,0.1141269,106360.0,106350.0,0.408301]
[1734400621805,0.16421294,106360.0,106350.0,0.408301]
[1734400624103,0.16421294,106360.0,106350.0,0.407801]
[1734400624308,0.2486394,106360.0,106350.0,0.407801]
[1734400624511,0.2486394,106360.0,106350.0,0.047001]
[1734400625197,0.29872544,106360.0,106350.0,0.047001]
[1734400625398,0.29872544,106360.0,106340.0,0.47648602]
[1734400625705,0.05008604,106350.0,106340.0,0.47648602]
[1734400625903,0.05008604,106350.0,106340.0,0.83728602]
[1734400626091,0.05008604,106350.0,106340.0,0.83678602]
[1734400627100,0.05008604,106350.0,106340.0,0.83728602]
[1734400628095,0.05008604,106350.0,106340.0,0.83678602]
[1734400629099,0.05008604,106350.0,106340.0,0.83728602]
[1734400630306,0.05008604,106350.0,106340.0,0.83678602]
[1734400631106,0.05008604,106350.0,106340.0,0.83728602]
[1734400631705,0.1345125,106350.0,106340.0,0.83728602]
[1734400632411,0.1345125,106350.0,106340.0,0.83678602]
[1734400633213,0.1345125,106350.0,106340.0,0.83728602]
[1734400634210,0.08442646,106350.0,106340.0,0.83678602]
[1734400634419,0.1345125,106350.0,106340.0,0.83678602]
[1734400634686,0.08442646,106350.0,106340.0,0.83678602]
[1734400634910,0.1345125,106350.0,106340.0,0.83678602]
[1734400635298,0.08442646,106350.0,106340.0,0.88737206]
[1734400636211,0.08442646,106350.0,106340.0,0.88687206]
[1734400636413,0.13142846,106350.0,106340.0,0.88687206]
[1734400637310,0.13142846,106350.0,106340.0,0.88737206]
[1734400637907,0.08442646,106350.0,106340.0,0.9374581]
[1734400638211,0.13142846,106350.0,106340.0,0.83728602]
[1734400639105,0.1815145,106350.0,106340.0,0.83728602]
[1734400639719,0.13142846,106350.0,106340.0,0.83728602]
[1734400640112,0.047002,106350.0,106340.0,0.83728602]
[1734400640302,0.047002,106350.0,106340.0,0.83678602]
[1734400641420,0.047002,106350.0,106340.0,0.88687206]
[1734400642111,0.047002,106350.0,106340.0,0.83678602]
[1734400642112,0.13142846,106350.0,106340.0,0.83678602]
[1734400643211,0.047002,106350.0,106340.0,0.83678602]
[1734400643717,0.13142846,106350.0,106340.0,0.83678602]
[1734400645113,0.08442646,106350.0,106340.0,0.88687206]
[1734400645418,0.36258171,106360.0,106340.0,0.88687206]
[1734400645717,0.36258171,106360.0,106350.0,0.3608]
[1734400648018,0.27815525,106360.0,106350.0,0.3608]
[1734400648219,0.27815525,106360.0,106340.0,0.52607206]
[1734400648417,0.08455391,106350.0,106340.0,0.52607206]
[1734400649707,0.36270916,106360.0,106340.0,0.52607206]
[1734400650117,0.08455391,106350.0,106340.0,0.52607206]
[1734400650510,0.36270916,106360.0,106340.0,0.52607206]
[1734400650716,0.08455391,106350.0,106340.0,0.52607206]
[1734400650913,0.36270916,106360.0,106340.0,0.52607206]
[1734400651423,0.36270916,106360.0,106350.0,0.3608]
[1734400652623,0.36270916,106360.0,106340.0,0.52607206]
[1734400652923,0.08455391,106350.0,106340.0,0.52607206]
[1734400653219,0.36220916,106360.0,106340.0,0.88687206]
[1734400653418,0.36220916,106360.0,106350.0,0.3608]
[1734400653619,0.38108294,106360.0,106350.0,0.3608]
[1734400654320,0.38158294,106360.0,106350.0,0.3608]
[1734400657827,0.047002,106350.0,106340.0,0.36221047]
[1734400658123,0.35461024,106350.0,106340.0,0.36221047]
[1734400658323,0.41311024,106350.0,106340.0,0.36221047]
[1734400658626,0.3003547,106350.0,106340.0,0.36221047]
[1734400658822,0.41311024,106350.0,106340.0,0.36221047]
[1734400659217,0.32854358,106350.0,106340.0,0.36221047]
[1734400659417,0.4130688,106350.0,106340.0,0.36221047]
[1734400665122,0.4130688,106350.0,106340.0,0.00141047]
[1734400665123,0.32854358,106350.0,106340.0,0.00141047]
[1734400667530,0.27845754,106350.0,106340.0,0.00141047]
[1734400667725,0.27845754,106350.0,106340.0,0.36221047]
[1734400667929,0.15975754,106350.0,106340.0,0.41229651]
[1734400668225,0.19718746,106350.0,106340.0,0.45930351]
[1734400668635,0.11275554,106350.0,106340.0,0.51910351]
[1734400668820,0.19718436,106350.0,106340.0,0.51910351]
[1734400669055,0.11275554,106350.0,106340.0,0.51910351]
[1734400669223,0.08442743,106350.0,106340.0,0.51910351]
[1734400669524,0.19718297,106350.0,106340.0,0.51910351]
[1734400669728,0.08442743,106350.0,106340.0,0.51910351]
[1734400671219,0.38150613,106360.0,106340.0,0.51910351]
[1734400671428,0.38150613,106360.0,106350.0,0.3608]
[1734400671826,0.43159217,106360.0,106350.0,0.3608]
[1734400672330,0.43109217,106360.0,106350.0,0.3608]
[1734400674018,0.43109217,106360.0,106340.0,0.467607]
[1734400674250,0.05008604,106350.0,106340.0,0.3608]
[1734400676492,0.13451117,106350.0,106340.0,0.3608]
[1734400676725,0.18151317,106350.0,106340.0,0.3608]
[1734400676915,0.23741317,106350.0,106340.0,0.3608]
[1734400681434,0.18151317,106350.0,106340.0,0.3608]
[1734400689837,0.20965488,106350.0,106340.0,0.3608]
[1734400691732,0.29416017,106350.0,106340.0,0.3608]
[1734400693446,0.24407413,106350.0,106340.0,0.3608]
[1734400693741,0.29416017,106350.0,106340.0,0.3608]
[1734400694046,0.29416017,106350.0,106340.0,0.4163]
[1734400694269,0.24407413,106350.0,106340.0,0.463307]
[1734400694442,0.13150729,106350.0,106340.0,0.463307]
[1734400695135,0.18159333,106350.0,106340.0,0.463307]
[1734400697442,0.13150729,106350.0,106340.0,0.463307]
[1734400697833,0.18159333,106350.0,106340.0,0.463307]
[1734400706355,0.18159333,106350.0,106340.0,0.3608]
[1734400710857,0.18159333,106350.0,106330.0,0.221211]
[1734400711099,0.18159333,106350.0,106340.0,0.3608]
[1734400712453,0.29416017,106350.0,106340.0,0.3608]
[1734400712652,0.35126017,106350.0,106340.0,0.3608]
[1734400724585,0.26675488,106350.0,106340.0,0.3608]
[1734400729497,0.29420131,106350.0,106340.0,0.407807]
[1734400729683,0.29420686,106350.0,106340.0,0.407807]
[1734400731087,0.20965488,106350.0,106340.0,0.407807]
[1734400731982,0.20965488,106350.0,106340.0,0.3608]
[1734400734891,0.20965488,106350.0,106330.0,0.52521]
[1734400735118,0.18165505,106340.0,106330.0,0.52521]
[1734400735293,0.08456201,106340.0,106330.0,0.52571]
[1734400735688,0.08456201,106340.0,106330.0,0.58321]
[1734400736399,0.08456201,106340.0,106330.0,0.58271]
[1734400737002,0.20965588,106350.0,106330.0,0.629719]
[1734400737003,0.29421789,106350.0,106330.0,0.629719]
[1734400737302,0.29421789,106350.0,106340.0,0.3608]
[1734400738092,0.20965588,106350.0,106340.0,0.3608]
[1734400738587,0.29421812,106350.0,106340.0,0.3608]
[1734400738792,0.29421827,106350.0,106340.0,0.3608]
[1734400739094,0.20965588,106350.0,106340.0,0.3608]
[1734400739700,0.2942195,106350.0,106340.0,0.3608]
[1734400740203,0.20965588,106350.0,106340.0,0.3608]
[1734400740511,0.29421976,106350.0,106340.0,0.3608]
[1734400740896,0.20965588,106350.0,106340.0,0.3608]
[1734400742205,0.29422304,106350.0,106340.0,0.3608]
[1734400742704,0.20965588,106350.0,106340.0,0.3608]
[1734400742909,0.29422224,106350.0,106340.0,0.3608]
[1734400743704,0.29422151,106350.0,106340.0,0.407807]
[1734400743905,0.29422227,106350.0,106340.0,0.407807]
[1734400744203,0.24413623,106350.0,106340.0,0.407807]
[1734400744400,0.29422227,106350.0,106340.0,0.407807]
[1734400747302,0.18165543,106350.0,106340.0,0.407807]
[1734400747511,0.29422227,106350.0,106340.0,0.407807]
[1734400748198,0.24413623,106350.0,106340.0,0.407807]
[1734400748404,0.19713323,106350.0,106340.0,0.407807]
[1734400749014,0.24721927,106350.0,106340.0,0.407807]
[1734400749603,0.13465243,106350.0,106340.0,0.407807]
[1734400750005,0.18165443,106350.0,106340.0,0.407807]
[1734400750699,0.29422127,106350.0,106340.0,0.407807]
[1734400751102,0.18165443,106350.0,106340.0,0.407807]
[1734400753911,0.29422127,106350.0,106340.0,0.407807]
[1734400754818,0.20965488,106350.0,106340.0,0.407807]
[1734400756014,0.29420139,106350.0,106340.0,0.407807]
[1734400757421,0.20965488,106350.0,106340.0,0.407807]
[1734400757725,0.20965488,106350.0,106340.0,0.047007]
[1734400758112,0.20965488,106350.0,106330.0,0.52571]
[1734400758309,0.20965488,106350.0,106330.0,0.52521]
[1734400758310,0.13463822,106340.0,106330.0,0.52521]
[1734400759431,0.13463822,106340.0,106330.0,0.52571]
[1734400760815,0.08455218,106340.0,106330.0,0.52571]
[1734400761147,0.08455218,106340.0,106330.0,0.57579604]
[1734400762514,0.29420706,106350.0,106330.0,0.57579604]
[1734400762720,0.29420706,106350.0,106340.0,0.3608]
[1734400763119,0.20965488,106350.0,106340.0,0.3608]
[1734400763523,0.29419808,106350.0,106330.0,0.57579604]
[1734400763829,0.08454557,106340.0,106330.0,0.52571]
[1734400766428,0.08454557,106340.0,106330.0,0.88651]
[1734400766628,0.25666088,106350.0,106330.0,0.88651]
[1734400766629,0.22863961,106350.0,106330.0,0.88651]
[1734400766824,0.18163361,106350.0,106340.0,0.3608]
[1734400768325,0.18163361,106350.0,106330.0,0.164908]
[1734400768532,0.18163361,106350.0,106340.0,0.3608]
[1734400769134,0.20965488,106350.0,106340.0,0.3608]
[1734400770025,0.29419973,106350.0,106340.0,0.3608]
[1734400770425,0.20965488,106350.0,106340.0,0.3608]
[1734400770625,0.20965488,106350.0,106330.0,0.572716]
[1734400770934,0.20965488,106350.0,106330.0,0.525708]
[1734400770935,0.08454269,106340.0,106330.0,0.525708]
[1734400771138,0.08454269,106340.0,106330.0,0.886508]
[1734400772831,0.18163073,106350.0,106330.0,0.886508]
[1734400773039,0.18163073,106350.0,106340.0,0.3608]
[1734400774843,0.18163073,106350.0,106330.0,0.164407]
[1734400775030,0.18163073,106350.0,106340.0,0.3608]
[1734400775730,0.18163073,106350.0,106340.0,0.407807]
[1734400780134,0.29419757,106350.0,106340.0,0.407807]
[1734400780343,0.20965488,106350.0,106340.0,0.407807]
[1734400782537,0.20965488,106350.0,106340.0,0.3608]
[1734400782843,0.26535488,106350.0,106340.0,0.3608]
[1734400785339,0.21526884,106350.0,106340.0,0.3608]
[1734400785640,0.26535488,106350.0,106340.0,0.3608]
[1734400787139,0.34989343,106350.0,106340.0,0.3608]
[1734400788439,0.29419343,106350.0,106340.0,0.407807]
[1734400788839,0.18162659,106350.0,106340.0,0.407807]
[1734400789547,0.13154055,106350.0,106340.0,0.407807]
[1734400789843,0.18162659,106350.0,106340.0,0.407807]
[1734400792236,0.13154055,106350.0,106340.0,0.407807]
[1734400792474,0.18162659,106350.0,106340.0,0.407807]
[1734400795151,0.24410739,106350.0,106340.0,0.407807]
[1734400795349,0.29419343,106350.0,106340.0,0.407807]
[1734400795539,0.20965488,106350.0,106340.0,0.407807]
[1734400799142,0.29419919,106350.0,106340.0,0.407807]
[1734400799349,0.15956884,106350.0,106340.0,0.407807]
[1734400799541,0.20965488,106350.0,106340.0,0.407807]
[1734400799773,0.29420011,106350.0,106340.0,0.407807]
[1734400799945,0.24411407,106350.0,106340.0,0.407807]
[1734400800146,0.29420011,106350.0,106340.0,0.407807]
[1734400800655,0.24411407,106350.0,106340.0,0.407807]
[1734400800857,0.29420011,106350.0,106340.0,0.407807]
[1734400805747,0.24411407,106350.0,106340.0,0.407807]
[1734400805951,0.29420011,106350.0,106340.0,0.407807]
[1734400807857,0.31323851,106350.0,106340.0,0.407807]
[1734400808356,0.26315247,106350.0,106340.0,0.407807]
[1734400808656,0.31323851,106350.0,106340.0,0.407807]
[1734400812158,0.26315247,106350.0,106340.0,0.407807]
[1734400812460,0.31323851,106350.0,106340.0,0.407807]
[1734400813045,0.26315247,106350.0,106340.0,0.407807]
[1734400814555,0.19711207,106350.0,106340.0,0.407807]
[1734400814755,0.19711207,106350.0,106340.0,0.522407]
[1734400814952,0.08454523,106350.0,106340.0,0.522407]
[1734400816462,0.13463127,106350.0,106340.0,0.522407]
[1734400817052,0.19711207,106350.0,106340.0,0.62257908]
[1734400817253,0.17046334,106360.0,106350.0,0.047002]
[1734400817254,0.31197541,106360.0,106350.0,0.047002]
[1734400817471,0.09470957,106360.0,106350.0,0.45788804]
[1734400817659,0.09470957,106360.0,106350.0,0.407802]
[1734400818154,0.14479561,106360.0,106350.0,0.407802]
[1734400818354,0.14429561,106360.0,106350.0,0.407802]
[1734400818564,0.25686245,106360.0,106350.0,0.407802]
[1734400818767,0.14429561,106360.0,106350.0,0.407802]
[1734400819156,0.19129361,106360.0,106350.0,0.407802]
[1734400819357,0.19179361,106360.0,106350.0,0.407802]
[1734400821468,0.19179361,106360.0,106350.0,0.047002]
[1734400821660,0.19179361,106360.0,106350.0,0.768602]
[1734400823713,0.09470957,106360.0,106350.0,0.768602]
[1734400823864,0.14479561,106360.0,106350.0,0.768602]
[1734400825159,0.24187965,106360.0,106350.0,0.7216]
[1734400825357,0.34662918,106360.0,106350.0,0.7216]
[1734400825564,0.44680126,106360.0,106350.0,0.7216]
[1734400826071,0.5312445,106360.0,106350.0,0.7216]
[1734400826663,0.48115846,106360.0,106350.0,0.7216]
[1734400828472,0.48065846,106360.0,106350.0,0.7216]
[1734400829176,0.5307445,106360.0,106350.0,0.7216]
[1734400832679,0.44630126,106360.0,106350.0,0.7216]
[1734400833975,0.44630126,106360.0,106350.0,0.3608]
[1734400839888,0.44630126,106360.0,106340.0,0.047006]
[1734400840090,0.39621522,106360.0,106350.0,0.3608]
[1734400842898,0.44630126,106360.0,106350.0,0.3608]
[1734400843590,0.38670126,106360.0,106350.0,0.3608]
[1734400844092,0.33661522,106360.0,106350.0,0.3608]
[1734400844292,0.38670126,106360.0,106350.0,0.3608]
[1734400844798,0.33661522,106360.0,106350.0,0.3608]
[1734400847904,0.28652918,106360.0,106350.0,0.3608]
[1734400848200,0.33661522,106360.0,106350.0,0.3608]
[1734400852903,0.27661522,106360.0,106350.0,0.3608]
[1734400853092,0.12223118,106360.0,106350.0,0.45788804]
[1734400853406,0.20676311,106360.0,106350.0,0.62998804]
[1734400853912,0.25684915,106360.0,106350.0,0.579902]
[1734400854101,0.17231722,106360.0,106350.0,0.579902]
[1734400854400,0.17231722,106360.0,106350.0,0.520402]
[1734400854791,0.26940126,106360.0,106350.0,0.520402]
[1734400854993,0.32760126,106360.0,106350.0,0.4734]
[1734400856089,0.27751522,106360.0,106350.0,0.4734]
[1734400856290,0.32760126,106360.0,106350.0,0.4734]
[1734400857699,0.27751522,106360.0,106350.0,0.4734]
[1734400858292,0.21931522,106360.0,106350.0,0.4734]
[1734400860690,0.21931522,106360.0,106350.0,0.520402]
[1734400862406,0.26940126,106360.0,106350.0,0.520402]
[1734400862589,0.32610126,106360.0,106350.0,0.463402]
[1734400865106,0.27601522,106360.0,106350.0,0.463402]
[1734400866809,0.22901722,106360.0,106350.0,0.463402]
[1734400869207,0.27601522,106360.0,106350.0,0.463402]
[1734400869800,0.27601522,106360.0,106350.0,0.519002]
[1734400869995,0.27601522,106360.0,106350.0,0.158202]
[1734400870206,0.27601522,106360.0,106350.0,0.519002]
[1734400871107,0.32610126,106360.0,106350.0,0.519002]
[1734400871701,0.27601522,106360.0,106350.0,0.519002]
[1734400872601,0.22901722,106360.0,106350.0,0.519002]
[1734400872801,0.17231722,106360.0,106350.0,0.519002]
[1734400873001,0.12223118,106360.0,106350.0,0.519002]
[1734400873201,0.17231722,106360.0,106350.0,0.519002]
[1734400878017,0.25685089,106360.0,106350.0,0.519002]
[1734400878414,0.14428405,106360.0,106350.0,0.519002]
[1734400878900,0.17231722,106360.0,106350.0,0.519002]
[1734400879307,0.25684725,106360.0,106350.0,0.519002]
[1734400880215,0.20675779,106360.0,106350.0,0.56908804]
[1734400880415,0.20675779,106360.0,106350.0,0.519002]
[1734400880630,0.12223118,106360.0,106350.0,0.519002]
[1734400881613,0.17231722,106360.0,106350.0,0.519002]
[1734400882019,0.25684708,106360.0,106350.0,0.519002]
[1734400886423,0.14428024,106360.0,106350.0,0.519002]
[1734400886818,0.25684708,106360.0,106350.0,0.519002]
[1734400887028,0.1970967,106360.0,106350.0,0.56908804]
[1734400887268,0.1975967,106370.0,106360.0,0.046998]
[1734400887531,0.0005,106370.0,106360.0,0.50797008]
[1734400887722,0.0005,106370.0,106360.0,0.407798]
[1734400888038,0.0005,106370.0,106360.0,0.45788404]
[1734400888039,0.1351159,106370.0,106360.0,0.45788404]
[1734400888429,0.08452986,106370.0,106360.0,0.45788404]
[1734400889356,0.1816049,106380.0,106370.0,0.046994]
[1734400889522,0.1821049,106380.0,106370.0,0.407794]
[1734400890433,0.1816049,106380.0,106370.0,0.407794]
[1734400890634,0.1816049,106380.0,106370.0,0.528994]
[1734400891531,0.1821049,106380.0,106370.0,0.528994]
[1734400892638,0.1816049,106380.0,106370.0,0.528994]
[1734400893540,0.1821049,106380.0,106370.0,0.528994]
[1734400895443,0.23219094,106380.0,106370.0,0.407794]
[1734400895744,0.34475778,106380.0,106370.0,0.407794]
[1734400895945,1.95935778,106380.0,106370.0,0.407794]
[1734400896437,0.45935778,106380.0,106370.0,0.3608]
[1734400896682,0.37482792,106380.0,106370.0,0.3608]
[1734400897442,0.37482792,106380.0,106360.0,0.046997]
[1734400897640,0.2902061,106370.0,106360.0,0.3608]
[1734400897830,0.2902061,106370.0,106350.0,0.407802]
[1734400898029,0.2399121,106360.0,106350.0,0.407802]
[1734400898442,0.18982606,106360.0,106350.0,0.408302]
[1734400899144,0.13974002,106360.0,106350.0,0.45838804]
[1734400899935,0.08434002,106360.0,106350.0,0.45838804]
[1734400900335,0.08434002,106360.0,106350.0,0.57748804]
[1734400901042,0.08434002,106370.0,106360.0,0.046998]
[1734400901347,0.24439686,106380.0,106370.0,0.046994]
[1734400901639,0.2944829,106380.0,106370.0,0.407794]
[1734400902042,0.13183002,106380.0,106370.0,0.45788004]
[1734400902347,0.08484002,106380.0,106370.0,0.45788004]
[1734400902537,0.13492606,106380.0,106370.0,0.407794]
[1734400906333,0.13492606,106380.0,106370.0,0.70614509]
[1734400906334,0.0005,106380.0,106370.0,0.70614509]
[1734400909459,0.26670598,106390.0,106370.0,0.70614509]
[1734400909754,0.26670598,106390.0,106380.0,0.407789]
[1734400910546,0.17013494,106390.0,106380.0,0.45787504]
[1734400910745,0.22022098,106390.0,106380.0,0.45787504]
[1734400910940,0.22022098,106390.0,106380.0,0.407789]
[1734400911450,0.21972098,106390.0,106380.0,0.407789]
[1734400912447,0.22022098,106390.0,106380.0,0.407789]
[1734400913148,0.22022098,106390.0,106380.0,0.45787504]
[1734400913352,0.22022098,106390.0,106380.0,0.407789]
[1734400913554,0.21972098,106390.0,106380.0,0.407789]
[1734400914651,0.22022098,106390.0,106380.0,0.407789]
[1734400915253,0.08579492,106390.0,106380.0,0.45787504]
[1734400915547,0.16964423,106390.0,106380.0,0.45787504]
[1734400916554,0.17014423,106390.0,106380.0,0.45787504]
[1734400917048,0.14172887,106390.0,106380.0,0.45787504]
[1734400917354,0.00056904,106390.0,106380.0,0.50796108]
[1734400917552,6.904e-05,106390.0,106380.0,0.45787504]
[1734400918647,0.00056904,106390.0,106380.0,0.45787504]
[1734400919051,0.00056904,106390.0,106380.0,0.50796108]
[1734400919247,0.00056904,106390.0,106380.0,0.56326108]
[1734400919656,0.00056904,106390.0,106380.0,0.69422613]
[1734400922689,6.904e-05,106390.0,106380.0,0.69422613]
[1734400922955,6.904e-05,106390.0,106380.0,0.70353962]
[1734400925143,6.904e-05,106390.0,106380.0,0.7036479]
[1734400929457,0.1,106400.0,106390.0,0.046985]
[1734400929759,0.1005,106400.0,106390.0,0.57277104]
[1734400930059,0.0588,106410.0,106400.0,0.04698]
[1734400930256,0.0588,106410.0,106400.0,0.50795208]
[1734400930458,0.05886731,106410.0,106400.0,0.50795208]
[1734400932157,0.05886731,106410.0,106400.0,0.63891713]
[1734400936648,0.05936731,106410.0,106400.0,0.63891713]
[1734400937162,0.05936731,106410.0,106400.0,0.64855922]
[1734400937659,0.05886731,106410.0,106400.0,0.64855922]
[1734400938555,0.05936731,106410.0,106400.0,0.64855922]
[1734400948664,0.05886731,106410.0,106400.0,0.64855922]
[1734400950208,6.731e-05,106410.0,106400.0,0.64855922]
[1734400950772,0.115,106420.0,106410.0,0.046976]
[1734400950957,0.0591,106420.0,106410.0,0.48803262]
[1734400951167,0.0591,106420.0,106410.0,0.60033262]
[1734400951370,0.0591,106420.0,106410.0,0.73129767]
[1734400951588,0.0596,106420.0,106410.0,0.73129767]
[1734400951763,0.05969126,106420.0,106410.0,0.73129767]
[1734400951964,0.05969126,106420.0,106410.0,0.70112709]
[1734400952669,0.05919126,106420.0,106410.0,0.70112709]
[1734400953276,0.05919126,106420.0,106410.0,0.58882709]
[1734400953491,0.11549126,106420.0,106410.0,0.58882709]
[1734400953682,0.11599126,106420.0,106410.0,0.58882709]
[1734400955264,0.1660773,106420.0,106410.0,0.53874105]
[1734400955576,0.17379126,106420.0,106410.0,0.45786204]
[1734400960579,0.2238773,106420.0,106410.0,0.407776]
[1734400960792,0.30810667,106420.0,106410.0,0.407776]
[1734400961680,0.30760667,106420.0,106410.0,0.407776]
[1734400961884,0.35457767,106420.0,106410.0,0.407776]
[1734400962479,0.40466371,106420.0,106410.0,0.407776]
[1734400962683,0.51696954,106420.0,106410.0,0.3608]
[1734400963074,0.43274017,106420.0,106410.0,0.3608]
[1734400963292,0.046976,106410.0,106400.0,0.407779]
[1734400963477,0.18148094,106410.0,106400.0,0.407779]
[1734400964468,0.18148094,106410.0,106400.0,0.3608]
[1734400964672,0.29378677,106410.0,106400.0,0.3608]
[1734400965187,0.34387281,106410.0,106400.0,0.3608]
[1734400965778,0.29378677,106410.0,106400.0,0.3608]
[1734400966183,0.04698,106400.0,106390.0,0.3608]
[1734400966406,0.39901881,106400.0,106390.0,0.3608]
[1734400966587,0.39901881,106400.0,106390.0,0.3613]
[1734400966588,0.51132464,106400.0,106390.0,0.3613]
[1734400966803,0.81132464,106400.0,106390.0,0.0005]
[1734400966971,0.046985,106390.0,106380.0,0.36090828]
[1734400967275,0.046985,106390.0,106360.0,0.13237497]
[1734400967276,0.62026291,106390.0,106360.0,0.40920692]
[1734400967479,0.046994,106370.0,106360.0,0.45929296]
[1734400967773,0.09708004,106370.0,106360.0,0.45929296]
[1734400967996,0.15438004,106370.0,106360.0,0.45929296]
[1734400968283,0.15438004,106370.0,106360.0,0.40920692]
[1734400968476,0.15448455,106370.0,106360.0,0.40920692]
[1734400968783,0.15448455,106370.0,106360.0,0.00140992]
[1734400969293,0.51528455,106370.0,106360.0,0.00140992]
[1734400969484,0.046998,106360.0,106350.0,7.869e-05]
[1734400969696,0.14717008,106360.0,106350.0,7.869e-05]
[1734400970479,0.20747008,106360.0,106350.0,7.869e-05]
[1734400971987,0.183665,106360.0,106350.0,7.869e-05]
[1734400972290,0.107298,106360.0,106350.0,0.36087869]
[1734400972496,0.107298,106360.0,106350.0,7.869e-05]
[1734400973173,0.107298,106360.0,106350.0,0.36087869]
[1734400974890,0.11663489,106360.0,106350.0,0.36087869]
[1734400976886,0.11663489,106360.0,106350.0,7.869e-05]
[1734400977690,0.11663489,106360.0,106350.0,0.40788069]
[1734400980791,0.19300189,106360.0,106350.0,0.36087869]
[1734400981698,0.19300189,106360.0,106350.0,7.869e-05]
[1734400984699,0.19300189,106360.0,106350.0,0.00057869]
[1734400985009,0.25190189,106360.0,106350.0,0.00057869]
[1734400987893,0.33622362,106360.0,106350.0,0.00057869]
[1734400988106,0.25985662,106360.0,106350.0,0.00057869]
[1734400988299,0.33622362,106360.0,106350.0,0.00057869]
[1734400989593,0.33622362,106360.0,106350.0,0.36137869]
[1734400991629,0.33622362,106360.0,106350.0,0.36087869]
[1734400991964,0.44852945,106360.0,106350.0,0.36087869]
[1734400992639,0.36420772,106360.0,106350.0,0.36087869]
[1734400994131,0.38806406,106360.0,106350.0,0.36087869]
[1734400994650,0.41614052,106360.0,106350.0,0.36087869]
[1734400996627,0.41644494,106360.0,106350.0,0.36087869]
[1734400997042,0.44421698,106360.0,106350.0,0.36087869]
[1734400999834,0.33520531,106360.0,106350.0,0.45799236]
[1734401000749,0.33520531,106360.0,106350.0,0.40788069]
[1734401001341,0.47609994,106360.0,106350.0,0.40788069]
[1734401001555,0.30764111,106360.0,106350.0,0.40788069]
[1734401001836,0.3076354,106360.0,106350.0,0.40788069]
[1734401003936,0.30762628,106360.0,106350.0,0.40788069]
[1734401004143,0.33520531,106360.0,106350.0,0.40788069]
[1734401008531,0.3076298,106360.0,106350.0,0.40788069]
[1734401012723,0.29498028,106360.0,106350.0,0.40788069]
[1734401014666,0.4076889,106360.0,106350.0,0.40788069]
[1734401015284,0.29498028,106360.0,106350.0,0.40788069]
[1734401015634,0.40769098,106360.0,106350.0,0.40788069]
[1734401016045,0.26680774,106360.0,106350.0,0.40788069]
[1734401016945,0.19724404,106360.0,106350.0,0.45799236]
[1734401017147,0.08453334,106360.0,106350.0,0.67832799]
[1734401017368,0.08453334,106360.0,106350.0,0.64815741]
[1734401017750,0.19734855,106370.0,106360.0,0.046998]
[1734401017988,0.19734855,106370.0,106360.0,0.61952134]
[1734401018565,0.08463785,106370.0,106360.0,0.61952134]
[1734401020647,0.00010451,106370.0,106360.0,0.61952134]
[1734401024554,0.00010451,106370.0,106360.0,0.56940967]
[1734401024753,0.00010451,106370.0,106360.0,0.57898324]
[1734401042434,0.00010451,106370.0,106360.0,0.41737157]
[1734401042661,0.05021618,106370.0,106360.0,0.407798]
[1734401042945,0.19138754,106370.0,106360.0,0.407798]
[1734401043253,0.16501618,106370.0,106360.0,0.407798]
[1734401043550,0.21201018,106370.0,106360.0,0.407798]
[1734401043848,0.29641364,106370.0,106360.0,0.407798]
[1734401044249,0.21201018,106370.0,106360.0,0.407798]
[1734401045237,0.2964289,106370.0,106360.0,0.407798]
[1734401045652,0.21201018,106370.0,106360.0,0.407798]
[1734401046545,0.32461921,106370.0,106360.0,0.407798]
[1734401046750,0.21201018,106370.0,106360.0,0.407798]
[1734401047355,0.21201018,106370.0,106360.0,0.3608]
[1734401047356,0.26212185,106370.0,106360.0,0.3608]
[1734401047561,0.046998,106360.0,106350.0,0.40837969]
[1734401047744,0.23678782,106360.0,106350.0,0.40837969]
[1734401048049,0.15230967,106360.0,106350.0,0.40837969]
[1734401048446,0.102198,106360.0,106350.0,0.45849136]
[1734401048655,0.18667404,106360.0,106350.0,0.45849136]
[1734401049749,0.18667404,106360.0,106350.0,0.40837969]
[1734401050754,0.18667404,106360.0,106350.0,0.40787969]
[1734401050951,0.23678571,106360.0,106350.0,0.40787969]
[1734401051151,0.15230967,106360.0,106350.0,0.40787969]
[1734401051542,0.102198,106360.0,106350.0,0.40787969]